bitfinex/quotes_SOLUSD_20240826
["timestamp","ask_amount","ask_price","bid_price","bid_amount"]
[1724685866828,7.1635925,157.47,157.42,6.3523]
[1724685867047,7.1635925,157.47,157.43,1.27023908]
[1724685867211,7.1635925,157.47,157.42,6.3523]
[1724685867844,6.3509,157.46,157.42,6.3523]
[1724685868940,6.3513,157.45,157.4,22.2358]
[1724685869131,6.352,157.43,157.37,15.886]
[1724685869310,15.0124,157.42,157.37,15.886]
[1724685869636,15.0124,157.42,157.38,6.354]
[1724685870213,21.3649,157.42,157.38,6.354]
[1724685870933,21.3649,157.42,157.37,22.2404]
[1724685871442,15.0124,157.42,157.37,15.886]
[1724685871616,6.3529,157.41,157.37,22.2403]
[1724685871817,15.0124,157.42,157.37,22.2403]
[1724685873244,15.0545405,157.42,157.37,22.2403]
[1724685873737,15.0545405,157.42,157.35,6.3551]
[1724685873930,45.0,157.41,157.35,6.3551]
[1724685874138,51.3532,157.41,157.36,6.3546]
[1724685874631,45.0,157.41,157.36,6.3546]
[1724685874840,6.3534,157.4,157.36,6.3546]
[1724685875342,6.3534,157.4,157.35,6.3552]
[1724685877243,6.3534,157.4,157.36,6.3547]
[1724685878632,0.12549,157.41,157.29,22.7837]
[1724685878861,45.25098,157.41,157.29,6.4348]
[1724685879151,6.3545,157.37,157.32,6.3563]
[1724685879450,45.25098,157.41,157.29,6.4348]
[1724685879451,45.12549,157.41,157.29,18.86981324]
[1724685879648,45.12549,157.41,157.3,1.59138472]
[1724685879821,45.12549,157.41,157.31,1.59140286]
[1724685880020,45.12549,157.41,157.3,0.12549]
[1724685880220,45.12549,157.41,157.31,1.59140154]
[1724685880419,6.3541,157.38,157.34,22.2443]
[1724685881123,6.3536,157.39,157.34,22.2443]
[1724685882450,6.3536,157.39,157.34,22.2442]
[1724685883030,15.1800305,157.42,157.34,15.8887]
[1724685883256,45.12549,157.41,157.34,15.8887]
[1724685884351,6.3537,157.39,157.34,22.2442]
[1724685884528,6.3537,157.39,157.35,6.3552]
[1724685884924,6.3532,157.4,157.35,7.62604586]
[1724685885119,6.3532,157.4,157.36,6.3548]
[1724685885632,6.3537,157.39,157.35,6.3552]
[1724685885847,6.3537,157.39,157.34,22.2441]
[1724685886221,6.354,157.38,157.34,22.2441]
[1724685886420,6.354,157.38,157.34,15.8887]
[1724685886646,6.3544,157.37,157.33,6.3559]
[1724685886845,15.0545405,157.42,157.34,6.3554]
[1724685887225,45.0,157.41,157.34,6.3554]
[1724685887551,6.354,157.39,157.34,6.3554]
[1724685887853,6.3558,157.34,157.31,2.54619433]
[1724685888027,16.00899,157.4,157.3,22.2503]
[1724685888028,6.3553,157.35,157.3,22.2503]
[1724685888230,0.0421405,157.35,157.31,6.3567]
[1724685888626,0.0421405,157.35,157.3,15.8931]
[1724685888831,6.3557,157.34,157.3,22.2502]
[1724685889738,6.3557,157.34,157.3,15.8931]
[1724685890268,6.3557,157.34,157.3,22.2503]
[1724685890566,6.3557,157.34,157.3,15.8931]
[1724685891231,6.3563,157.33,157.28,2.54668187]
[1724685891429,6.3557,157.34,157.29,7.94927616]
[1724685891751,6.3557,157.34,157.29,6.3576]
[1724685893127,6.3557,157.34,157.3,6.3572]
[1724685895346,6.3562,157.33,157.29,6.3575]
[1724685896029,6.3557,157.34,157.29,6.3575]
[1724685896643,6.3557,157.34,157.3,6.3572]
[1724685897151,6.3557,157.34,157.29,6.3575]
[1724685897658,6.3557,157.34,157.3,6.3572]
[1724685900459,0.0421405,157.35,157.28,33.06136199]
[1724685900669,0.0421405,157.35,157.31,22.2484]
[1724685900862,0.1676305,157.35,157.25,6.0427]
[1724685901164,45.1676305,157.35,157.28,15.8945]
[1724685901344,6.3561,157.33,157.28,22.2524]
[1724685901944,45.1676305,157.35,157.28,15.8945]
[1724685902136,6.3565,157.32,157.28,15.8945]
[1724685902553,6.3565,157.32,157.28,22.2524]
[1724685903431,6.3986405,157.32,157.28,22.2524]
[1724685904464,0.0421405,157.32,157.3,15.8924]
[1724685904637,0.0421405,157.32,157.31,6.3568]
[1724685904839,0.0421405,157.32,157.25,6.0427]
[1724685904840,6.3985405,157.32,157.28,6.3579]
[1724685905150,0.0421405,157.32,157.28,6.3577]
[1724685905750,0.0421405,157.32,157.29,6.3573]
[1724685905950,0.0421405,157.32,157.31,6.3568]
[1724685908169,0.0421405,157.32,157.29,22.2512]
[1724685908663,0.0421405,157.32,157.3,6.3572]
[1724685909549,0.0421405,157.32,157.31,6.3568]
[1724685910641,0.0421405,157.32,157.31,7.6279188]
[1724685910847,0.0421405,157.32,157.31,6.3568]
[1724685911574,0.0421405,157.32,157.29,22.2515]
[1724685911752,0.0421405,157.32,157.3,7.62819706]
[1724685912348,16.2988,157.31,157.26,15.8967]
[1724685912550,16.2988,157.31,157.27,6.3583]
[1724685912861,16.2988,157.31,157.28,6.3579]
[1724685913055,16.2988,157.31,157.26,22.2554]
[1724685913056,22.6558,157.31,157.26,22.2554]
[1724685913271,6.3579,157.29,157.24,6.3594]
[1724685913639,16.2988,157.31,157.22,2.54742829]
[1724685913837,45.25098,157.3,157.2,6.65061643]
[1724685914062,22.6589,157.23,157.18,6.362]
[1724685914240,22.6589,157.23,157.17,22.2686]
[1724685915872,6.3605,157.22,157.17,22.2686]
[1724685917052,6.3609,157.21,157.17,15.9062]
[1724685917559,6.3605,157.22,157.17,22.2686]
[1724685918055,16.2988,157.23,157.18,6.362]
[1724685918367,16.2988,157.23,157.2,22.2645]
[1724685918681,383.8,157.25,157.2,22.2645]
[1724685918855,390.1593,157.25,157.2,22.2645]
[1724685919353,383.8,157.25,157.21,6.3609]
[1724685919980,383.8,157.25,157.2,22.2644]
[1724685920162,390.1594,157.25,157.2,22.2644]
[1724685920877,390.1594,157.25,157.21,6.3609]
[1724685921080,383.8,157.25,157.21,6.3609]
[1724685921779,383.8,157.25,157.23,6.36]
[1724685922554,383.8,157.25,157.24,6.3597]
[1724685922781,15.4911,157.27,157.24,6.3597]
[1724685923077,21.8497,157.27,157.22,22.2609]
[1724685924382,15.4911,157.27,157.18,15.9044]
[1724685924554,15.4911,157.27,157.18,0.12549]
[1724685924875,15.4911,157.27,157.18,65.12549]
[1724685925473,21.8496,157.27,157.22,6.3605]
[1724685925683,21.8496,157.27,157.23,6.36]
[1724685926653,15.8842405,157.32,157.22,15.9005]
[1724685926982,15.8842405,157.32,157.2,6.4577]
[1724685926983,15.8842405,157.32,157.26,15.8967]
[1724685927185,0.0421405,157.32,157.28,6.3578]
[1724685927963,6.3986405,157.32,157.28,6.3578]
[1724685928370,6.3986405,157.32,157.27,1.27148561]
[1724685928577,6.3986405,157.32,157.27,6.3584]
[1724685928883,6.3568,157.31,157.27,6.3584]
[1724685930966,6.3986405,157.32,157.27,6.3584]
[1724685932386,0.0421405,157.32,157.23,15.8999]
[1724685932596,0.0421405,157.32,157.21,0.12549]
[1724685932597,6.3573,157.3,157.21,0.12549]
[1724685932778,6.3573,157.3,157.21,20.25098]
[1724685932973,6.357,157.31,157.26,6.3587]
[1724685933363,6.3985405,157.32,157.28,6.3579]
[1724685933583,6.3985405,157.32,157.25,15.8977]
[1724685933780,6.3569,157.31,157.26,6.3588]
[1724685933994,6.3572,157.3,157.25,22.2566]
[1724685934197,6.3577,157.29,157.25,22.2566]
[1724685934980,0.0421405,157.32,157.26,7.63052365]
[1724685935290,6.3572,157.31,157.27,6.3584]
[1724685935618,6.3987405,157.32,157.27,6.3584]
[1724685935904,0.0421405,157.32,157.28,7.6293704]
[1724685936411,6.3986405,157.32,157.28,7.6293704]
[1724685937103,6.3986405,157.32,157.28,6.3579]
[1724685937591,0.0421405,157.32,157.31,6.3568]
[1724685939608,0.0421405,157.32,157.29,15.8937]
[1724685939909,6.3587,157.27,157.23,15.8996]
[1724685940080,0.12549,157.31,157.23,15.8996]
[1724685940281,6.3577,157.29,157.23,22.2594]
[1724685941004,6.3577,157.29,157.24,6.3596]
[1724685942088,6.4239,157.31,157.17,6.106]
[1724685942291,444.75108,157.3,157.18,1.59229824]
[1724685942614,6.3605,157.22,157.17,15.9061]
[1724685942913,0.12549,157.26,157.13,22.0155]
[1724685943082,6.3618,157.19,157.13,28.3796]
[1724685943287,6.3618,157.19,157.13,22.2736]
[1724685943585,0.12549,157.2,157.09,22.1614]
[1724685943785,0.12549,157.19,157.1,6.3649]
[1724685943989,0.12549,157.19,157.09,22.1614]
[1724685943990,0.12549,157.19,157.09,15.914]
[1724685944192,6.3638,157.14,157.09,15.914]
[1724685944511,6.3641,157.13,157.05,22.4655]
[1724685944715,6.3641,157.13,157.06,6.3669]
[1724685945227,6.3647,157.12,157.05,22.4655]
[1724685945505,6.3647,157.12,157.05,28.8325]
[1724685945710,6.3647,157.12,157.06,6.3669]
[1724685945887,0.25098,157.15,157.05,22.4655]
[1724685945888,6.3639,157.14,157.07,6.3664]
[1724685946208,0.12549,157.17,157.09,6.3657]
[1724685946411,45.25098,157.17,157.09,6.3657]
[1724685946787,45.25098,157.17,157.1,6.3653]
[1724685947189,6.3633,157.15,157.09,6.3657]
[1724685948188,6.364,157.14,157.08,15.9152]
[1724685948814,6.364,157.14,157.08,22.281]
[1724685949014,6.3631,157.16,157.09,6.3654]
[1724685949215,45.25098,157.17,157.09,6.3654]
[1724685950317,6.3637,157.15,157.09,6.3654]
[1724685951324,6.3637,157.15,157.1,6.3653]
[1724685951623,6.3637,157.15,157.09,6.3657]
[1724685951806,6.3639,157.14,157.09,6.3657]
[1724685952596,6.3642,157.13,157.08,22.2813]
[1724685952796,6.3647,157.12,157.08,15.9152]
[1724685953905,6.3641,157.13,157.08,22.2813]
[1724685955425,45.25098,157.17,157.08,15.9152]
[1724685956503,6.3633,157.15,157.1,6.3652]
[1724685957229,6.3637,157.14,157.1,6.3652]
[1724685959130,45.12549,157.17,157.11,7.637735]
[1724685959313,45.0,157.17,157.11,7.637735]
[1724685959634,383.8,157.18,157.12,6.3644]
[1724685959802,405.694,157.21,157.12,6.3644]
[1724685960133,6.3624,157.18,157.13,7.63670666]
[1724685960442,6.3618,157.19,157.14,6.3637]
[1724685960602,399.3939,157.21,157.15,17.18094975]
[1724685960804,383.8,157.21,157.16,6.3625]
[1724685961127,383.8,157.21,157.18,6.362]
[1724685961346,383.8,157.21,157.17,17.17838731]
[1724685961347,383.8,157.21,157.17,22.2683]
[1724685961636,390.161,157.21,157.17,22.2683]
[1724685962625,383.8,157.21,157.17,22.2683]
[1724685964042,6.3614,157.2,157.14,15.9091]
[1724685964229,390.161,157.21,157.16,6.3629]
[1724685965238,6.361,157.21,157.16,6.3629]
[1724685965535,6.3613,157.2,157.16,6.3629]
[1724685966219,6.3613,157.2,157.15,6.3632]
[1724685966803,6.361,157.21,157.16,6.3627]
[1724685967413,6.3614,157.2,157.15,6.3632]
[1724685967616,16.02609,157.23,157.14,15.9091]
[1724685967938,0.12549,157.21,157.14,15.9091]
[1724685968130,16.02829,157.21,157.12,6.3642]
[1724685968337,6.3629,157.16,157.11,30.9372]
[1724685968830,6.3629,157.16,157.11,15.9117]
[1724685969407,6.3635,157.15,157.11,15.9117]
[1724685969635,6.3638,157.14,157.09,12.654]
[1724685969935,6.3638,157.14,157.1,6.3652]
[1724685970132,6.3634,157.15,157.1,6.3652]
[1724685971531,6.3638,157.14,157.1,6.3652]
[1724685971735,6.3634,157.15,157.1,6.3652]
[1724685972033,6.3647,157.12,157.08,15.9152]
[1724685972344,0.25098,157.14,157.03,15.3763]
[1724685972345,6.3662,157.08,157.03,6.3681]
[1724685972547,6.3662,157.08,157.02,15.921]
[1724685972548,0.12549,157.09,157.02,15.921]
[1724685972850,6.3673,157.06,157.01,6.4688]
[1724685973147,6.3675,157.05,157.0,6.3694]
[1724685973620,6.3668,157.07,157.01,6.3688]
[1724685974323,51.3672,157.06,157.01,6.3688]
[1724685976255,0.12549,157.08,157.02,17.19514907]
[1724685976548,45.0,157.08,157.02,15.9214]
[1724685977255,383.8,157.09,157.02,15.9214]
[1724685977420,383.8,157.09,157.05,6.3673]
[1724685977756,390.1657,157.09,157.04,6.3677]
[1724685977915,383.8,157.09,157.05,6.3672]
[1724685978119,390.1658,157.09,157.04,22.2865]
[1724685978540,383.8,157.09,157.05,6.3671]
[1724685980036,6.3655,157.1,157.05,6.3671]
[1724685982263,6.3648,157.12,157.07,6.3664]
[1724685982436,6.365,157.11,157.06,22.2838]
[1724685983571,6.365,157.11,157.07,6.3665]
[1724685984037,15.5629,157.14,157.08,6.366]
[1724685984240,6.3644,157.13,157.08,6.366]
[1724685985652,6.3638,157.14,157.09,1.27308124]
[1724685985856,383.8,157.16,157.1,15.9126]
[1724685986062,383.8,157.17,157.11,6.3646]
[1724685986441,6.3633,157.15,157.1,22.2778]
[1724685986635,6.364,157.14,157.1,15.9126]
[1724685987035,383.8,157.17,157.08,6.3661]
[1724685987036,6.3642,157.13,157.08,6.3661]
[1724685987273,6.3646,157.12,157.08,6.3661]
[1724685988549,6.3646,157.12,157.07,22.2823]
[1724685989950,399.7078,157.16,157.07,15.9158]
[1724685990298,399.7078,157.16,157.09,6.3654]
[1724685990639,6.3638,157.14,157.09,6.3654]
[1724685991047,6.3638,157.14,157.1,6.3653]
[1724685991562,6.3634,157.15,157.09,15.9139]
[1724685991774,383.8,157.16,157.1,1.27288888]
[1724685991978,383.8,157.16,157.13,6.364]
[1724685992845,383.8,157.16,157.12,6.3644]
[1724685993039,390.163,157.16,157.11,37.3312]
[1724685993255,6.3633,157.15,157.11,22.2766]
[1724685993454,6.3633,157.15,157.11,15.9118]
[1724685993666,6.3637,157.14,157.1,6.3652]
[1724685994062,383.8,157.16,157.11,6.3649]
[1724685994063,6.3634,157.15,157.11,6.3649]
[1724685994268,390.1632,157.16,157.11,7.63779429]
[1724685994467,390.1632,157.16,157.11,6.3649]
[1724685995080,6.3634,157.15,157.11,6.3649]
[1724685998375,6.3638,157.14,157.1,22.278]
[1724685998577,6.3649,157.12,157.07,38.2728]
[1724685998766,0.12549,157.15,157.07,38.2728]
[1724685999767,6.3646,157.12,157.07,38.2728]
[1724686000187,6.3642,157.13,157.08,6.366]
[1724686000558,6.3642,157.13,157.09,6.3656]
[1724686000773,399.7049,157.19,157.1,1.27303626]
[1724686000958,383.8,157.18,157.1,1.27303626]
[1724686001688,6.3632,157.16,157.11,6.3648]
[1724686001889,383.8,157.18,157.12,6.3644]
[1724686002092,383.8,157.18,157.11,15.9121]
[1724686002574,383.8,157.17,157.13,6.3637]
[1724686005366,390.1626,157.17,157.13,6.3637]
[1724686005676,383.8,157.17,157.13,17.18251196]
[1724686006171,383.8,157.17,157.13,15.9098]
[1724686006772,31.3496,157.22,157.13,15.9098]
[1724686006970,45.25098,157.21,157.12,6.6101]
[1724686007494,6.3626,157.17,157.12,12.9743]
[1724686007799,6.3632,157.16,157.12,6.6101]
[1724686008095,6.3632,157.16,157.12,12.9746]
[1724686008269,6.3635,157.15,157.12,6.6101]
[1724686010017,6.363,157.16,157.12,6.6101]
[1724686010517,6.363,157.16,157.12,12.9745]
[1724686010717,6.3622,157.18,157.14,6.3636]
[1724686010900,15.9009,157.23,157.15,6.3633]
[1724686011087,15.9009,157.23,157.14,22.2726]
[1724686011292,6.3624,157.18,157.14,15.909]
[1724686011815,6.3625,157.17,157.13,6.364]
[1724686013711,6.3621,157.18,157.14,7.6363025]
[1724686013910,6.3621,157.18,157.14,6.3637]
[1724686016421,399.7026,157.21,157.08,6.1225]
[1724686016422,6.3649,157.11,157.08,6.1225]
[1724686016726,0.12549,157.16,157.08,6.1225]
[1724686016905,45.25098,157.16,157.08,6.1225]
[1724686018125,6.3634,157.15,157.1,6.3652]
[1724686019026,6.3634,157.15,157.11,6.3649]
[1724686019804,6.3629,157.16,157.12,6.3644]
[1724686020021,6.3629,157.16,157.11,6.3645]
[1724686020342,383.8,157.2,157.12,15.9109]
[1724686020530,383.8,157.2,157.13,1.27257003]
[1724686020823,6.3624,157.18,157.13,6.364]
[1724686022018,6.3617,157.19,157.14,1.27262785]
[1724686022208,390.1614,157.2,157.15,6.3632]
[1724686022814,6.3618,157.19,157.14,22.2723]
[1724686024128,390.1614,157.2,157.16,6.3628]
[1724686024530,390.1614,157.2,157.15,6.3632]
[1724686024722,6.3614,157.2,157.15,6.3632]
[1724686025335,16.02849,157.21,157.1,18.46229021]
[1724686025537,0.12549,157.19,157.11,6.3647]
[1724686025719,6.3644,157.13,157.1,2.54939021]
[1724686025923,6.3649,157.11,157.1,2.54939021]
[1724686026123,6.49039,157.11,157.1,2.54939021]
[1724686026323,51.61588,157.11,157.1,2.54939021]
[1724686026915,51.49039,157.11,157.1,2.54939021]
[1724686027138,6.49039,157.11,157.1,2.54939021]
[1724686027617,51.61588,157.11,157.1,2.54939021]
[1724686027817,6.3655,157.1,157.05,6.367]
[1724686028324,6.365,157.11,157.06,7.96095568]
[1724686028538,6.365,157.11,157.06,6.3669]
[1724686029444,383.8,157.14,157.07,1.59391659]
[1724686029618,390.1638,157.14,157.09,6.3657]
[1724686029813,6.3674,157.05,157.0,6.65916308]
[1724686030014,6.3679,157.04,157.01,4.1451268]
[1724686030235,6.3682,157.03,157.02,1.59427954]
[1724686030539,6.3682,157.03,156.94,6.66285808]
[1724686030540,0.25098,157.03,156.94,6.66285808]
[1724686030719,6.3698,157.0,156.95,1.59487946]
[1724686030917,6.3698,157.0,156.96,1.59487946]
[1724686031124,6.3698,157.0,156.97,1.59487946]
[1724686031331,6.369,157.01,156.96,6.371]
[1724686031931,0.12549,157.07,156.97,1.27397107]
[1724686032253,6.61788,157.07,156.98,15.9248]
[1724686032412,383.8,157.09,156.99,1.27364574]
[1724686032615,383.8,157.09,157.02,15.9206]
[1724686032833,383.8,157.09,157.03,6.3678]
[1724686033036,383.8,157.09,157.03,7.64122045]
[1724686033233,390.1658,157.09,157.04,6.3676]
[1724686033414,383.8,157.09,157.05,6.3673]
[1724686033629,6.3653,157.1,157.05,6.3673]
[1724686034147,6.3653,157.1,156.99,31.15286788]
[1724686034148,21.8522,157.12,157.07,6.3665]
[1724686034353,6.3645,157.12,157.07,6.3665]
[1724686034851,6.3645,157.12,157.06,6.3669]
[1724686035747,0.12549,157.13,157.07,1.27324075]
[1724686036049,45.12549,157.14,157.06,15.9167]
[1724686036740,383.8,157.15,157.07,1.27308967]
[1724686036944,383.8,157.15,157.09,15.9143]
[1724686037243,383.8,157.15,157.1,1.27290835]
[1724686037443,383.8,157.15,157.09,15.9143]
[1724686037630,383.8,157.15,157.11,6.3649]
[1724686038254,383.8,157.15,157.09,15.9143]
[1724686038424,6.3637,157.14,157.09,22.2797]
[1724686038929,390.1633,157.15,157.1,6.3652]
[1724686039543,6.3633,157.15,157.1,6.3652]
[1724686041040,6.363,157.16,157.11,6.3649]
[1724686041357,6.3634,157.15,157.1,6.3653]
[1724686042457,6.3638,157.14,157.1,6.3653]
[1724686042659,6.3633,157.15,157.1,6.3653]
[1724686045454,6.3633,157.15,157.11,6.3648]
[1724686045853,6.363,157.16,157.11,6.3648]
[1724686048948,6.3625,157.18,157.13,6.364]
[1724686049375,6.3625,157.17,157.13,6.364]
[1724686049542,6.363,157.16,157.12,12.7512]
[1724686050392,383.8,157.19,157.13,17.18264156]
[1724686050570,6.362,157.19,157.14,6.3634]
[1724686051250,6.3621,157.18,157.14,6.3634]
[1724686051440,6.3621,157.18,157.13,22.2739]
[1724686053569,6.3621,157.18,157.13,23.54651975]
[1724686053964,6.3621,157.18,157.13,23.54651865]
[1724686054847,6.3625,157.17,157.13,23.54651865]
[1724686055455,6.3622,157.18,157.13,22.2739]
[1724686055682,6.3605,157.22,157.15,15.9079]
[1724686055877,670.9791,157.28,157.19,6.3616]
[1724686056083,6.3596,157.25,157.2,6.3612]
[1724686056279,6.3598,157.24,157.2,6.3612]
[1724686056471,6.3598,157.24,157.19,22.2653]
[1724686057066,6.3598,157.24,157.2,1.27218877]
[1724686058685,6.3594,157.25,157.2,7.63338877]
[1724686058864,6.3594,157.25,157.21,1.27204953]
[1724686059068,6.3597,157.24,157.2,7.63324953]
[1724686060877,383.8,157.3,157.21,32.28137636]
[1724686061086,383.8,157.3,157.22,6.0065]
[1724686061269,383.8,157.3,157.23,1.27178061]
[1724686061466,6.3579,157.29,157.24,6.3596]
[1724686061675,6.3581,157.28,157.24,6.3596]
[1724686062271,6.3585,157.27,157.23,6.36]
[1724686062488,6.3585,157.27,157.22,12.3669]
[1724686063005,6.3589,157.26,157.22,12.3669]
[1724686063499,6.3589,157.26,157.22,6.0065]
[1724686063705,6.3589,157.26,157.22,12.3669]
[1724686065198,6.3585,157.27,157.22,12.3669]
[1724686065424,6.3581,157.28,157.22,6.0065]
[1724686065596,6.3581,157.28,157.23,6.3598]
[1724686066097,6.3584,157.27,157.23,6.3598]
[1724686066706,6.3584,157.27,157.22,12.3669]
[1724686067696,6.3584,157.27,157.23,6.36]
[1724686068096,6.3584,157.27,157.22,12.3666]
[1724686071504,6.3584,157.27,157.23,6.36]
[1724686071708,6.3584,157.27,157.24,1.27189573]
[1724686073321,6.3582,157.28,157.24,7.63149573]
[1724686073484,6.3582,157.28,157.24,6.3596]
[1724686074001,6.3582,157.28,157.23,7.63169954]
[1724686074305,6.3582,157.28,157.24,1.27180022]
[1724686076710,6.3577,157.29,157.24,7.63140022]
[1724686076914,6.3577,157.29,157.25,6.3592]
[1724686077298,6.3572,157.3,157.26,6.3588]
[1724686077704,6.3569,157.31,157.26,6.3588]
[1724686078607,6.3569,157.31,157.25,15.898]
[1724686078608,6.3569,157.31,157.27,6.3584]
[1724686079621,0.0421405,157.32,157.3,6.279]
[1724686079822,0.0421405,157.32,157.31,6.3568]
[1724686080934,0.0421405,157.32,157.3,6.279]
[1724686081097,6.3986405,157.32,157.3,6.279]
[1724686081525,6.3986405,157.32,157.27,6.3581]
[1724686081728,6.3986405,157.32,157.26,22.0098]
[1724686081729,6.3986405,157.32,157.28,6.3579]
[1724686082018,0.0421405,157.32,157.28,6.3579]
[1724686082593,261.54861481,157.41,157.35,16.4724]
[1724686082594,6.64861481,157.41,157.35,16.4724]
[1724686082795,6.3535,157.4,157.35,22.673]
[1724686083110,6.3535,157.4,157.35,38.5602]
[1724686083433,6.3529,157.41,157.35,38.5602]
[1724686083594,6.3529,157.41,157.36,6.3548]
[1724686083997,383.8,157.47,157.36,1.2708578]
[1724686084231,6.352,157.43,157.37,15.8854]
[1724686084431,6.3517,157.44,157.39,6.3536]
[1724686084840,6.3511,157.46,157.39,15.8832]
[1724686085056,383.8,157.47,157.4,1.27057382]
[1724686085358,383.8,157.47,157.43,6.3519]
[1724686085532,6.3504,157.47,157.42,7.62257718]
[1724686085728,7.163037,157.48,157.43,6.3519]
[1724686086055,0.813037,157.48,157.44,6.3515]
[1724686086240,0.813037,157.48,157.44,22.8239]
[1724686086634,0.813037,157.48,157.44,16.4724]
[1724686087434,0.813037,157.48,157.44,17.74260443]
[1724686087634,0.813037,157.48,157.44,16.4724]
[1724686088453,0.813037,157.48,157.44,24.0940879]
[1724686089164,0.813037,157.48,157.47,6.3504]
[1724686089338,0.813037,157.48,157.47,51.47589]
[1724686089864,6.3463,157.57,157.52,6.3483]
[1724686090028,6.3467,157.56,157.5,22.2211]
[1724686090230,6.3481,157.53,157.48,13.81997353]
[1724686090467,6.3477,157.54,157.49,1.2697735]
[1724686090761,383.8,157.61,157.51,6.3486]
[1724686091061,6.3468,157.56,157.52,15.8709]
[1724686091255,6.3468,157.56,157.49,15.8737]
[1724686091869,383.8,157.61,157.51,6.3487]
[1724686092062,6.3468,157.56,157.49,15.8737]
[1724686092638,6.3472,157.55,157.49,15.8737]
[1724686092831,6.3472,157.55,157.5,6.3491]
[1724686093036,6.3476,157.54,157.5,1.26958913]
[1724686093574,399.6636,157.6,157.5,6.3491]
[1724686093575,6.3472,157.55,157.5,6.3491]
[1724686094765,6.3496,157.49,157.44,29.0671]
[1724686094937,6.3505,157.47,157.44,22.7156]
[1724686095138,0.12549,157.53,157.44,6.2432]
[1724686095446,6.3501,157.48,157.44,6.2432]
[1724686095841,6.351,157.46,157.44,6.2432]
[1724686096035,6.3504,157.47,157.44,6.2432]
[1724686096244,6.3504,157.47,157.42,6.3522]
[1724686097043,6.35,157.48,157.43,7.6222777]
[1724686097462,0.25098,157.53,157.44,6.3515]
[1724686097874,6.35,157.48,157.43,6.352]
[1724686099063,0.25098,157.53,157.42,15.8803]
[1724686099064,6.3496,157.49,157.44,1.27009804]
[1724686099281,6.3496,157.49,157.45,1.26989443]
[1724686099955,6.3496,157.49,157.44,22.2299]
[1724686100261,15.8717,157.52,157.42,6.3521]
[1724686100446,15.8717,157.52,157.4,38.9553]
[1724686100447,0.12549,157.51,157.44,6.3514]
[1724686101175,6.3499,157.49,157.44,6.3514]
[1724686101379,0.12549,157.51,157.42,15.8804]
[1724686101545,6.3504,157.47,157.42,22.2327]
[1724686101750,6.3508,157.46,157.42,22.2327]
[1724686101979,6.3504,157.47,157.42,22.2327]
[1724686102290,6.3504,157.47,157.43,1.27024518]
[1724686103650,6.3497,157.49,157.44,6.3513]
[1724686103874,6.3497,157.49,157.45,1.27003415]
[1724686104248,6.3492,157.5,157.46,1.26995811]
[1724686104776,6.3488,157.51,157.44,15.8784]
[1724686104943,6.3492,157.5,157.46,6.3505]
[1724686105382,6.3492,157.5,157.45,7.62106031]
[1724686105674,6.3492,157.5,157.45,6.3511]
[1724686107281,6.3497,157.49,157.45,6.3511]
[1724686107578,6.3501,157.48,157.44,22.2299]
[1724686107758,6.3511,157.46,157.4,38.9558]
[1724686108179,6.3505,157.47,157.42,6.3523]
[1724686108490,6.3505,157.47,157.43,6.3519]
[1724686109856,6.3505,157.47,157.4,38.9558]
[1724686109857,6.3499,157.49,157.44,1.27019597]
[1724686110174,6.3497,157.49,157.45,6.3509]
[1724686110564,6.3497,157.49,157.46,1.27009859]
[1724686110767,6.3497,157.49,157.45,6.3509]
[1724686111792,6.3506,157.47,157.41,15.8819]